fUST/lending_fUST_20250222
["ID","MTS","AMOUNT","RATE_DAILY","PERIOD"]
[354071893,1740222645071,-1364.02,0.00014356,2]
[354071894,1740222645081,-581.2,0.00014356,2]
[354071895,1740222645090,-500.0,0.00014356,2]
[354071896,1740222645100,-500.0,0.00014356,2]
[354071897,1740222645109,-593.36,0.00014356,2]
[354071898,1740222645120,-500.0,0.00014356,2]
[354071899,1740222645131,-500.0,0.00014356,2]
[354071900,1740222645141,-1223.6,0.00014356,2]
[354071901,1740222645151,-590.61,0.00014356,2]
[354071902,1740222645160,-1262.6,0.00014356,2]
[354071903,1740222645170,-500.0,0.00014356,2]
[354071904,1740222645179,-500.0,0.00014356,2]
[354071905,1740222645188,-5908.69,0.00014356,2]
[354071906,1740222645199,-500.0,0.00014356,2]
[354071907,1740222645208,-500.0,0.00014356,2]
[354071908,1740222645218,-5433.29,0.00014356,2]
[354071909,1740222645228,-1735.19,0.00014356,2]
[354071910,1740222645237,-500.0,0.00014356,2]
[354071911,1740222645247,-500.0,0.00014356,2]
[354071912,1740222645256,-2769.2,0.00014356,2]
[354071913,1740222645265,-3922.33,0.00014356,2]
[354071914,1740222645275,-846.43,0.00014356,2]
[354071915,1740222645284,-500.0,0.00014356,2]
[354071916,1740222645293,-151.0,0.000144,2]
[354071917,1740222645303,-151.0,0.000144,2]
[354071918,1740222645312,-245.52,0.00014438,2]
[354071919,1740222645322,-500.0,0.00014438,2]
[354071920,1740222645332,-420.83079161,0.00014438,2]
[354071921,1740222645342,-500.0,0.00014438,2]
[354071922,1740222645351,-500.0,0.00014438,2]
[354071923,1740222645361,-500.0,0.00014438,2]
[354071924,1740222645370,-363.32,0.00014438,2]
[354071925,1740222645380,-509.19,0.00014438,2]
[354071926,1740222645389,-500.0,0.00014438,2]
[354071927,1740222645398,-441.36,0.00014438,2]
[354071928,1740222645408,-500.0,0.00014438,2]
[354071929,1740222645417,-689.09,0.00014438,2]
[354071930,1740222645427,-1732.87,0.00014438,2]
[354071932,1740222645436,-297.9,0.00014438,2]
[354071934,1740222645446,-1364.02,0.00014438,2]
[354071936,1740222645455,-500.0,0.00014438,2]
[354071939,1740222645466,-512.63,0.00014438,2]
[354071940,1740222645476,-500.0,0.00014438,2]
[354071941,1740222645485,-500.0,0.00014438,2]
[354071942,1740222645494,-1223.6,0.00014438,2]
[354071943,1740222645504,-590.61,0.00014438,2]
[354071944,1740222645513,-1262.6,0.00014438,2]
[354071945,1740222645523,-500.0,0.00014438,2]
[354071946,1740222645533,-5908.69,0.00014438,2]
[354071947,1740222645542,-208.71,0.00014438,2]
[354071948,1740222645552,-500.0,0.00014438,2]
[354071949,1740222645562,-5433.29,0.00014438,2]
[354071950,1740222645571,-1735.19,0.00014438,2]
[354071951,1740222645580,-500.0,0.00014438,2]
[354071952,1740222645590,-500.0,0.00014438,2]
[354071953,1740222645599,-2769.2,0.00014438,2]
[354071954,1740222645609,-3922.33,0.00014438,2]
[354071955,1740222645619,-846.43,0.00014438,2]
[354071956,1740222645629,-500.0,0.00014438,2]
[354071957,1740222645638,-294.95110756,0.00014472,2]
[354071958,1740222645648,-151.0,0.000145,2]
[354071959,1740222645658,-151.0,0.000145,2]
[354071960,1740222645667,-552.96895371,0.00014502,2]
[354071961,1740222645676,-500.0,0.0001452,2]
[354071962,1740222645685,-500.0,0.0001452,2]
[354071964,1740222645695,-243.43,0.0001452,2]
[354071965,1740222645704,-471.01,0.0001452,2]
[354071966,1740222645713,-509.19,0.0001452,2]
[354071967,1740222645722,-500.0,0.0001452,2]
[354071968,1740222645731,-500.0,0.0001452,2]
[354071969,1740222645741,-689.09,0.0001452,2]
[354071970,1740222645750,-1732.87,0.0001452,2]
[354071971,1740222645759,-1364.02,0.0001452,2]
[354071972,1740222645769,-500.0,0.0001452,2]
[354071973,1740222645779,-646.92,0.0001452,2]
[354071974,1740222645789,-624.08,0.0001452,2]
[354071975,1740222645798,-1223.6,0.0001452,2]
[354071976,1740222645807,-590.61,0.0001452,2]
[354071977,1740222645817,-1262.6,0.0001452,2]
[354071978,1740222645826,-500.0,0.0001452,2]
[354071984,1740222645893,-5908.69,0.0001452,2]
[354071986,1740222645903,-500.0,0.0001452,2]
[354071988,1740222645913,-5433.29,0.0001452,2]
[354071990,1740222645922,-1735.19,0.0001452,2]
[354071992,1740222645931,-394.34,0.0001452,2]
[354071994,1740222645941,-432.46,0.0001452,2]
[354071996,1740222645950,-2769.2,0.0001452,2]
[354071998,1740222645959,-3922.33,0.0001452,2]
[354072000,1740222645968,-846.43,0.0001452,2]
[354072002,1740222645977,-500.0,0.0001452,2]
[354072003,1740222645987,-1463.16594557,0.00014584,2]
[354072004,1740222645999,-284.32,0.00014584,2]
[354072005,1740222646008,-196.16188624,0.00014584,2]
[354072006,1740222646018,-196.16188624,0.00014584,2]
[354072007,1740222646027,-196.16188624,0.00014584,2]
[354072008,1740222646038,-196.16188624,0.00014584,2]
[354072009,1740222646048,-196.16188624,0.00014584,2]
[354072010,1740222646058,-196.16188624,0.00014584,2]
[354072011,1740222646069,-196.16188624,0.00014584,2]
[354072012,1740222646078,-196.16188624,0.00014584,2]
[354072013,1740222646088,-196.16188624,0.00014584,2]
[354072014,1740222646097,-196.16188624,0.00014584,2]
[354072015,1740222646107,-196.16188624,0.00014584,2]
[354072016,1740222646116,-196.16188624,0.00014584,2]
[354072017,1740222646129,-196.16188624,0.00014584,2]
[354072018,1740222646138,-196.16188624,0.00014584,2]
[354072019,1740222646148,-196.16188624,0.00014584,2]
[354072020,1740222646158,-196.16188624,0.00014584,2]
[354072021,1740222646168,-196.16188624,0.00014584,2]
[354072022,1740222646178,-196.16188624,0.00014584,2]
[354072023,1740222646187,-196.16188624,0.00014584,2]
[354072024,1740222646196,-196.16,0.00014584,2]
[354072025,1740222646206,-245.9609401,0.00014584,2]
[354072026,1740222646215,-245.9609401,0.00014584,2]
[354072027,1740222646225,-245.9609401,0.00014584,2]
[354072028,1740222646234,-245.9609401,0.00014584,2]
[354072029,1740222646243,-245.9609401,0.00014584,2]
[354072030,1740222646252,-245.9609401,0.00014584,2]
[354072031,1740222646262,-245.9609401,0.00014584,2]
[354072032,1740222646271,-245.9609401,0.00014584,2]
[354072033,1740222646281,-245.9609401,0.00014584,2]
[354072034,1740222646290,-245.9609401,0.00014584,2]
[354072035,1740222646300,-245.9609401,0.00014584,2]
[354072036,1740222646309,-245.9609401,0.00014584,2]
[354072037,1740222646320,-245.9609401,0.00014584,2]
[354072038,1740222646330,-245.9609401,0.00014584,2]
[354072039,1740222646340,-245.9609401,0.00014584,2]
[354072040,1740222646349,-245.9609401,0.00014584,2]
[354072041,1740222646358,-245.9609401,0.00014584,2]
[354072042,1740222646370,-245.9609401,0.00014584,2]
[354072043,1740222646380,-245.9609401,0.00014584,2]
[354072044,1740222646390,-245.96,0.00014584,2]
[354072045,1740222646401,-151.0,0.000146,2]
[354072046,1740222646411,-500.0,0.00014602,2]
[354072047,1740222646420,-500.0,0.00014602,2]
[354072048,1740222646430,-509.19,0.00014602,2]
[354072049,1740222646439,-500.0,0.00014602,2]
[354072050,1740222646448,-500.0,0.00014602,2]
[354072051,1740222646458,-689.09,0.00014602,2]
[354072052,1740222646467,-1732.87,0.00014602,2]
[354072053,1740222646477,-1364.02,0.00014602,2]
[354072054,1740222646486,-500.0,0.00014602,2]
[354072055,1740222646500,-1223.6,0.00014602,2]
[354072056,1740222646511,-590.61,0.00014602,2]
[354072057,1740222646520,-1262.6,0.00014602,2]
[354072058,1740222646530,-500.0,0.00014602,2]
[354072059,1740222646539,-5908.69,0.00014602,2]
[354072060,1740222646549,-500.0,0.00014602,2]
[354072061,1740222646559,-5433.29,0.00014602,2]
[354072062,1740222646568,-1735.19,0.00014602,2]
[354072063,1740222646578,-2769.2,0.00014602,2]
[354072064,1740222646587,-3922.33,0.00014602,2]
[354072065,1740222646597,-846.43,0.00014602,2]
[354072066,1740222646607,-500.0,0.00014602,2]
[354072067,1740222646616,-500.0,0.00014684,2]
[354072068,1740222646625,-500.0,0.00014684,2]
[354072069,1740222646634,-509.19,0.00014684,2]
[354072070,1740222646643,-500.0,0.00014684,2]
[354072071,1740222646653,-454.69,0.00014684,2]
[354072072,1740222646662,-689.09,0.00014684,2]
[354072073,1740222646672,-1732.87,0.00014684,2]
[354072074,1740222646682,-1364.02,0.00014684,2]
[354072075,1740222646691,-500.0,0.00014684,2]
[354072076,1740222646701,-1223.6,0.00014684,2]
[354072077,1740222646711,-590.61,0.00014684,2]
[354072078,1740222646720,-1262.6,0.00014684,2]
[354072079,1740222646729,-500.0,0.00014684,2]
[354072080,1740222646739,-5908.69,0.00014684,2]
[354072081,1740222646749,-323.42,0.00014684,2]
[354072082,1740222646762,-5433.29,0.00014684,2]
[354072083,1740222646771,-1735.19,0.00014684,2]
[354072084,1740222646781,-2769.2,0.00014684,2]
[354072085,1740222646790,-3922.33,0.00014684,2]
[354072086,1740222646800,-846.43,0.00014684,2]
[354072087,1740222646809,-500.0,0.00014684,2]
[354072088,1740222646819,-151.0,0.000147,2]
[354072089,1740222646829,-151.0,0.000147,2]
[354072090,1740222646839,-1000.0,0.00014721,2]
[354072091,1740222646849,-383.123283,0.00014721,2]
[354072092,1740222646862,-1000.0,0.00014721,2]
[354072093,1740222646872,-12924.89674434,0.00014737,2]
[354072094,1740222646881,-971.114,0.00014764,2]
[354072095,1740222646891,-172.07886125,0.00014764,2]
[354072096,1740222646901,-500.0,0.00014767,2]
[354072097,1740222646910,-500.0,0.00014767,2]
[354072098,1740222646919,-509.19,0.00014767,2]
[354072099,1740222646928,-500.0,0.00014767,2]
[354072100,1740222646995,-689.09,0.00014767,2]
[354072101,1740222647005,-1732.87,0.00014767,2]
[354072102,1740222647014,-1364.02,0.00014767,2]
[354072103,1740222647023,-500.0,0.00014767,2]
[354072104,1740222647033,-1223.6,0.00014767,2]
[354072105,1740222647043,-590.61,0.00014767,2]
[354072106,1740222647052,-1262.6,0.00014767,2]
[354072107,1740222647062,-500.0,0.00014767,2]
[354072108,1740222647071,-5908.69,0.00014767,2]
[354072109,1740222647081,-5433.29,0.00014767,2]
[354072110,1740222647091,-1735.19,0.00014767,2]
[354072111,1740222647100,-2769.2,0.00014767,2]
[354072112,1740222647110,-3922.33,0.00014767,2]
[354072113,1740222647121,-846.43,0.00014767,2]
[354072114,1740222647133,-500.0,0.00014767,2]
[354072115,1740222647142,-151.0,0.000148,2]
[354072116,1740222647152,-30000.00000001,0.000148,2]
[354072117,1740222647162,-22618.2580778,0.000148,2]
[354072118,1740222647172,-165.85732852,0.000148,2]
[354072119,1740222647182,-165.85732852,0.000148,2]
[354072120,1740222647192,-165.85732852,0.000148,2]
[354072121,1740222647203,-165.85,0.000148,2]
[354072122,1740222647212,-457.71106789,0.000148,2]
[354072123,1740222647221,-457.71106789,0.000148,2]
[354072124,1740222647231,-457.71106789,0.000148,2]
[354072125,1740222647241,-457.71106789,0.000148,2]
[354072126,1740222647250,-457.71106789,0.000148,2]
[354072127,1740222647260,-457.71106789,0.000148,2]
[354072128,1740222647270,-457.71106789,0.000148,2]
[354072129,1740222647279,-457.71106789,0.000148,2]
[354072130,1740222647289,-457.71106789,0.000148,2]
[354072131,1740222647299,-457.71106789,0.000148,2]
[354072132,1740222647309,-457.71106789,0.000148,2]
[354072133,1740222647319,-457.71106789,0.000148,2]
[354072134,1740222647331,-457.71106789,0.000148,2]
[354072135,1740222647340,-457.71106789,0.000148,2]
[354072136,1740222647350,-457.71106789,0.000148,2]
[354072137,1740222647361,-457.71106789,0.000148,2]
[354072138,1740222647371,-457.71106789,0.000148,2]
[354072139,1740222647380,-457.71106789,0.000148,2]
[354072140,1740222647390,-457.71106789,0.000148,2]
[354072141,1740222647400,-457.71,0.000148,2]
[354072142,1740222647410,-573.90886023,0.000148,2]
[354072143,1740222647420,-573.90886023,0.000148,2]
[354072144,1740222647430,-573.90886023,0.000148,2]
[354072145,1740222647439,-573.90886023,0.000148,2]
[354072146,1740222647448,-573.90886023,0.000148,2]
[354072147,1740222647458,-573.90886023,0.000148,2]
[354072148,1740222647467,-573.90886023,0.000148,2]
[354072149,1740222647477,-573.90886023,0.000148,2]
[354072150,1740222647487,-573.90886023,0.000148,2]
[354072151,1740222647501,-573.90886023,0.000148,2]
[354072152,1740222647511,-573.90886023,0.000148,2]
[354072153,1740222647521,-573.90886023,0.000148,2]
[354072154,1740222647530,-573.90886023,0.000148,2]
[354072155,1740222647540,-573.90886023,0.000148,2]
[354072156,1740222647549,-573.90886023,0.000148,2]
[354072157,1740222647559,-573.90886023,0.000148,2]
[354072158,1740222647568,-573.90886023,0.000148,2]
[354072159,1740222647577,-573.90886023,0.000148,2]
[354072160,1740222647587,-573.90886023,0.000148,2]
[354072161,1740222647597,-573.9,0.000148,2]
[354072162,1740222647606,-8830.37113292,0.000148,2]
[354072163,1740222647615,-500.0,0.00014849,2]
[354072164,1740222647625,-500.0,0.00014849,2]
[354072165,1740222647637,-509.19,0.00014849,2]
[354072166,1740222647656,-500.0,0.00014849,2]
[354072167,1740222647668,-689.09,0.00014849,2]
[354072168,1740222647678,-1732.87,0.00014849,2]
[354072169,1740222647688,-1364.02,0.00014849,2]
[354072170,1740222647698,-500.0,0.00014849,2]
[354072171,1740222647707,-1223.6,0.00014849,2]
[354072172,1740222647717,-590.61,0.00014849,2]
[354072173,1740222647726,-1262.6,0.00014849,2]
[354072174,1740222647736,-500.0,0.00014849,2]
[354072175,1740222647746,-5908.69,0.00014849,2]
[354072176,1740222647755,-5433.29,0.00014849,2]
[354072177,1740222647764,-1735.19,0.00014849,2]
[354072178,1740222647774,-2769.2,0.00014849,2]
[354072179,1740222647783,-3922.33,0.00014849,2]
[354072180,1740222647794,-846.43,0.00014849,2]
[354072181,1740222647803,-500.0,0.00014849,2]
[354072182,1740222647813,-500.0,0.00014873,2]
[354072183,1740222647822,-500.0,0.00014873,2]
[354072184,1740222647832,-500.0,0.00014873,2]
[354072185,1740222647841,-500.0,0.00014873,2]
[354072186,1740222647851,-500.0,0.00014873,2]
[354072187,1740222647861,-500.0,0.00014873,2]
[354072188,1740222647871,-500.0,0.00014873,2]
[354072189,1740222647880,-500.0,0.00014873,2]
[354072190,1740222647890,-500.0,0.00014873,2]
[354072191,1740222647899,-1810.16,0.000149,2]
[354072192,1740222647909,-300.0,0.000149,5]
[354072193,1740222647919,-1297.85343023,0.000149,2]
[354072194,1740222647928,-151.0,0.000149,2]
[354072195,1740222647938,-151.0,0.000149,2]
[354072196,1740222647947,-151.0,0.000149,2]
[354072197,1740222647957,-630784.575326,0.000149,2]
[354072198,1740222648025,-151.0,0.000149,2]
[354072199,1740222648035,-163.747966,0.000149,2]
[354072200,1740222648045,-3358.719246,0.000149,2]
[354072201,1740222648055,-3358.719246,0.000149,2]
[354072202,1740222648064,-151.0,0.000149,2]
[354072203,1740222648074,-400.861654,0.000149,2]
[354072204,1740222648083,-400.861654,0.000149,2]
[354072205,1740222648093,-572.347246,0.000149,2]
[354072206,1740222648102,-572.347246,0.000149,2]
[354072207,1740222648112,-151.0,0.000149,2]
[354072208,1740222648124,-465.05386517,0.00014903,2]
[354072209,1740222648133,-500.0,0.00014931,2]
[354072210,1740222648142,-500.0,0.00014931,2]
[354072211,1740222648152,-509.19,0.00014931,2]
[354072212,1740222648162,-500.0,0.00014931,2]
[354072213,1740222648171,-689.09,0.00014931,2]
[354072214,1740222648181,-1732.87,0.00014931,2]
[354072215,1740222648190,-1364.02,0.00014931,2]
[354072216,1740222648201,-500.0,0.00014931,2]
[354072217,1740222648211,-1223.6,0.00014931,2]
[354072218,1740222648220,-590.61,0.00014931,2]
[354072219,1740222648230,-1262.6,0.00014931,2]
[354072220,1740222648240,-194.38328305,0.00014931,2]
[354072221,1740222648249,-5908.69,0.00014931,2]
[354072222,1740222648259,-5433.29,0.00014931,2]
[354072223,1740222648269,-1735.19,0.00014931,2]
[354072224,1740222648278,-2769.2,0.00014931,2]
[354072225,1740222648288,-3922.33,0.00014931,2]
[354072226,1740222648297,-846.43,0.00014931,2]
[354072227,1740222648307,-500.0,0.00014931,2]
[354072228,1740222648316,-1000.0,0.00015,2]
[354072229,1740222648326,-500.0,0.00015013,2]
[354072230,1740222648336,-500.0,0.00015013,2]
[354072231,1740222648345,-509.19,0.00015013,2]
[354072232,1740222648356,-500.0,0.00015013,2]
[354072233,1740222648366,-689.09,0.00015013,2]
[354072234,1740222648376,-1732.87,0.00015013,2]
[354072235,1740222648386,-1364.02,0.00015013,2]
[354072236,1740222648396,-500.0,0.00015013,2]
[354072237,1740222648406,-1223.6,0.00015013,2]
[354072238,1740222648416,-590.61,0.00015013,2]
[354072239,1740222648426,-1262.6,0.00015013,2]
[354072240,1740222648436,-5908.69,0.00015013,2]
[354072241,1740222648446,-5433.29,0.00015013,2]
[354072242,1740222648455,-1735.19,0.00015013,2]
[354072243,1740222648465,-2769.2,0.00015013,2]
[354072244,1740222648488,-3922.33,0.00015013,2]
[354072245,1740222648507,-846.43,0.00015013,2]
[354072246,1740222648525,-500.0,0.00015013,2]
[354072247,1740222648545,-520.1083,0.00015095,2]
[354072248,1740222648564,-500.0,0.00015095,2]
[354072249,1740222648582,-509.19,0.00015095,2]
[354072250,1740222648601,-157.6,0.00015095,2]
[354072251,1740222648614,-689.09,0.00015095,2]
[354072252,1740222648632,-1732.87,0.00015095,2]
[354072253,1740222648652,-1364.02,0.00015095,2]
[354072254,1740222648671,-500.0,0.00015095,2]
[354072255,1740222648685,-1223.6,0.00015095,2]
[354072256,1740222648704,-590.61,0.00015095,2]
[354072257,1740222648718,-1262.6,0.00015095,2]
[354072258,1740222648734,-5908.69,0.00015095,2]
[354072259,1740222648747,-5433.29,0.00015095,2]
[354072260,1740222648762,-1735.19,0.00015095,2]
[354072261,1740222648777,-2769.2,0.00015095,2]
[354072262,1740222648791,-3922.33,0.00015095,2]
[354072263,1740222648808,-846.43,0.00015095,2]
[354072264,1740222648823,-500.0,0.00015095,2]
[354072265,1740222648837,-500.0,0.00015178,2]
[354072266,1740222648852,-509.19,0.00015178,2]
[354072267,1740222648866,-689.09,0.00015178,2]
[354072268,1740222648881,-1732.87,0.00015178,2]
[354072269,1740222648896,-1364.02,0.00015178,2]
[354072270,1740222648910,-500.0,0.00015178,2]
[354072271,1740222648925,-1223.6,0.00015178,2]
[354072272,1740222648940,-590.61,0.00015178,2]
[354072273,1740222648955,-1262.6,0.00015178,2]
[354072274,1740222648969,-5908.69,0.00015178,2]
[354072275,1740222648984,-5433.29,0.00015178,2]
[354072276,1740222648997,-1735.19,0.00015178,2]
[354072277,1740222649013,-2769.2,0.00015178,2]
[354072278,1740222649027,-3922.33,0.00015178,2]
[354072279,1740222649038,-846.43,0.00015178,2]
[354072280,1740222649047,-500.0,0.00015178,2]
[354072281,1740222649056,-1500.0,0.00015222,2]
[354072282,1740222649066,-1000.0,0.00015222,2]
[354072283,1740222649075,-500.0,0.0001526,2]
[354072284,1740222649084,-509.19,0.0001526,2]
[354072285,1740222649093,-689.09,0.0001526,2]
[354072286,1740222649103,-1732.87,0.0001526,2]
[354072287,1740222649113,-1364.02,0.0001526,2]
[354072288,1740222649245,-354.52,0.0001526,2]
[354072289,1740222649264,-1223.6,0.0001526,2]
[354072290,1740222649273,-590.61,0.0001526,2]
[354072291,1740222649283,-1262.6,0.0001526,2]
[354072292,1740222649292,-5908.69,0.0001526,2]
[354072293,1740222649302,-5433.29,0.0001526,2]
[354072294,1740222649311,-1735.19,0.0001526,2]
[354072295,1740222649321,-2769.2,0.0001526,2]
[354072296,1740222649332,-3922.33,0.0001526,2]
[354072297,1740222649341,-846.43,0.0001526,2]
[354072298,1740222649350,-500.0,0.0001526,2]
[354072299,1740222649360,-855.03201106,0.00015316,2]
[354072300,1740222649369,-540.03147791,0.00015322,2]
[354072301,1740222649379,-500.0,0.00015322,2]
[354072302,1740222649388,-500.0,0.00015342,2]
[354072303,1740222649397,-509.19,0.00015342,2]
[354072304,1740222649407,-689.09,0.00015342,2]
[354072305,1740222649416,-1732.87,0.00015342,2]
[354072306,1740222649426,-1364.02,0.00015342,2]
[354072307,1740222649435,-1223.6,0.00015342,2]
[354072308,1740222649445,-590.61,0.00015342,2]
[354072309,1740222649455,-1262.6,0.00015342,2]
[354072310,1740222649464,-5908.69,0.00015342,2]
[354072311,1740222649473,-5433.29,0.00015342,2]
[354072312,1740222649483,-1735.19,0.00015342,2]
[354072313,1740222649493,-2769.2,0.00015342,2]
[354072314,1740222649502,-3922.33,0.00015342,2]
[354072315,1740222649512,-846.43,0.00015342,2]
[354072316,1740222649521,-500.0,0.00015342,2]
[354072317,1740222649530,-500.0,0.00015342,2]
[354072318,1740222649540,-855.03201106,0.00015416,2]
[354072319,1740222649550,-263.14410552,0.00015421,2]
[354072320,1740222649559,-1000.0,0.00015421,2]
[354072321,1740222649568,-1000.0,0.00015421,2]
[354072322,1740222649577,-186.51817746,0.00015421,2]
[354072323,1740222649587,-603.34612592,0.00015421,2]
[354072324,1740222649596,-1099.67744206,0.00015421,2]
[354072325,1740222649605,-1000.0,0.00015421,2]
[354072326,1740222649615,-1000.0,0.00015421,2]
[354072327,1740222649624,-667.57096307,0.00015421,2]
[354072328,1740222649634,-500.0,0.00015424,2]
[354072329,1740222649643,-509.19,0.00015424,2]
[354072330,1740222649652,-689.09,0.00015424,2]
[354072331,1740222649661,-1732.87,0.00015424,2]
[354072332,1740222649670,-1364.02,0.00015424,2]
[354072333,1740222649680,-1223.6,0.00015424,2]
[354072334,1740222649690,-590.61,0.00015424,2]
[354072335,1740222649699,-1262.6,0.00015424,2]
[354072336,1740222649708,-5908.69,0.00015424,2]
[354072337,1740222649718,-5433.29,0.00015424,2]
[354072338,1740222649727,-1735.19,0.00015424,2]
[354072339,1740222649736,-2769.2,0.00015424,2]
[354072340,1740222649746,-3922.33,0.00015424,2]
[354072341,1740222649755,-846.43,0.00015424,2]
[354072342,1740222649765,-500.0,0.00015424,2]
[354072343,1740222649774,-587.0,0.00015486,2]
[354072344,1740222649784,-446.72,0.00015506,2]
[354072345,1740222649793,-509.19,0.00015506,2]
[354072346,1740222649802,-689.09,0.00015506,2]
[354072347,1740222649812,-1732.87,0.00015506,2]
[354072348,1740222649821,-1364.02,0.00015506,2]
[354072349,1740222649831,-1223.6,0.00015506,2]
[354072350,1740222649840,-590.61,0.00015506,2]
[354072351,1740222649850,-1262.6,0.00015506,2]
[354072352,1740222649859,-5908.69,0.00015506,2]
[354072353,1740222649868,-5433.29,0.00015506,2]
[354072354,1740222649877,-1735.19,0.00015506,2]
[354072355,1740222649887,-2769.2,0.00015506,2]
[354072356,1740222649897,-3922.33,0.00015506,2]
[354072357,1740222649907,-846.43,0.00015506,2]
[354072358,1740222649917,-170.27502506,0.00015506,2]
[354072359,1740222649926,-855.03201106,0.00015516,2]
[354072360,1740222649936,-154.796407,0.00015534,2]
[354072361,1740222649945,-153.0,0.00015534,2]
[354072362,1740222649954,-509.27,0.00015589,2]
[354072363,1740222649963,-689.10332503,0.00015589,2]
[354072364,1740222649973,-1732.9677467,0.00015589,2]
[354072365,1740222649982,-1364.10450594,0.00015589,2]
[354072366,1740222649991,-1223.72,0.00015589,2]
[354072367,1740222650000,-590.66751033,0.00015589,2]
[354072368,1740222650010,-1262.65950026,0.00015589,2]
[354072369,1740222650019,-5908.74051926,0.00015589,2]
[354072370,1740222650029,-5433.41,0.00015589,2]
[354072371,1740222650038,-1735.2779653,0.00015589,2]
[354072372,1740222650047,-2769.3417759,0.00015589,2]
[354072373,1740222650057,-3922.38,0.00015589,2]
[354072374,1740222650066,-846.45483007,0.00015589,2]
[354072375,1740222650075,-855.03201106,0.00015616,2]
[354072376,1740222650085,-465.00269326,0.00015648,2]
[354072377,1740222650094,-855.03201106,0.00015716,2]
[354072378,1740222650104,-1000.0,0.00015722,2]
[354072379,1740222650113,-500.0,0.00015722,2]
[354072380,1740222650126,-232.78526,0.00015775,2]
[354072381,1740222650136,-179.69451932,0.00015786,2]
[354072382,1740222650147,-355.293833,0.00015798,2]
[354072383,1740222650156,-855.03201106,0.00015816,2]
[354072384,1740222650166,-1000.0,0.0001589,2]
[354072385,1740222650177,-855.03201106,0.00015916,2]
[354072386,1740222650186,-3000.0,0.00016,2]
[354072387,1740222650195,-3000.0,0.0001601,2]
[354072388,1740222650208,-855.03201106,0.00016016,2]
[354072389,1740222650219,-3000.0,0.0001602,2]
[354072390,1740222650230,-3000.0,0.0001603,2]
[354072391,1740222650239,-3000.0,0.0001604,2]
[354072392,1740222650248,-3000.0,0.0001605,2]
[354072393,1740222650257,-3000.0,0.0001606,2]
[354072394,1740222650266,-3000.0,0.0001607,2]
[354072395,1740222650276,-176.16802,0.0001607,2]
[354072396,1740222650286,-3000.0,0.0001608,2]
[354072397,1740222650296,-3000.0,0.0001609,2]
[354072398,1740222650306,-151.0,0.0001609,2]
[354072399,1740222650315,-400.861654,0.0001609,2]
[354072400,1740222650325,-400.861654,0.0001609,2]
[354072401,1740222650334,-3000.0,0.000161,2]
[354072402,1740222650344,-314.412662,0.000161,2]
[354072403,1740222650353,-314.412662,0.000161,2]
[354072404,1740222650362,-361.260264,0.000161,2]
[354072405,1740222650372,-361.260264,0.000161,2]
[354072406,1740222650381,-3000.0,0.0001611,2]
[354072407,1740222650391,-855.03201106,0.00016116,2]
[354072408,1740222650400,-3000.0,0.0001612,2]
[354072409,1740222650410,-3000.0,0.0001613,2]
[354072410,1740222650419,-3358.719246,0.0001613,2]
[354072411,1740222650430,-3358.719246,0.0001613,2]
[354072412,1740222650440,-3000.0,0.0001614,2]